Workbook

Sheet Tool
A1: Voltages | H1: **Hysteresis may be Susceptible to Minor Tolerance Errors**
A2: Vcc (V) | B2: Vdiv (V) | C2: Vpu (V) | D2: Vh (V) | E2: Vl (V) | F2: Vhyst_int (mV) | G2: Vin,max (V) | H2: **R3 cannot be zero or have a negative value.**
A3: 5 | B3: 5 | C3: 3.3 | D3: 16.025 | E3: 15.975 | F3: 0 | G3: 32 | H3: **Inputs can only be numbers, no text. (e.g. no 'k' for 1000)**
H4: **Check input parameters for incorrect voltage values**
A5: Modes | H5: **Consider Modifying RB, RA, or Increasing Total Hysteresis**
A6: Output Stage | B6: Resistor Range | C6: Comparator Configuration | D6: Input Voltge Range | E6: Resistor Configuration | F6: Drop Input Voltge | H6: =_xlfn.CONCAT("**Maximum voltage is greater than Vcc/2",IF(D7="LOW"," Consider Changing the Input Voltage Range**"," Consider Droping the Input Voltage**")) -> **Maximum voltage is greater than Vcc/2 Consider Droping the Input Voltage**
A7: OD | B7: MΩ | C7: NON | D7: HIGH | E7: RA | F7: TRUE | I7: INPUT | K7: OUTPUT
A9: Resistors
A10: R1 (Ω) | B10: R2 (Ω) | C10: R3 (Ω) | D10: R4 (Ω) | E10: R5 (Ω) | F10: RA (Ω) | G10: RB (Ω) | H10: =IF(C7="INV","RA + RB (Ω)","Req (Ω)") -> Req (Ω)
A11: =IF(AND(D7="HIGH",C7="NON"),IF(AND($C$7="NON",NOT($F$7),NOT(E7="RA, RB")),0,behind_the_scenes!$E$28),IF(Tool!$C$7="INV", behind_the_scenes!$B$5*$B$11*$D$11/($B$11+$D$11), behind_the_scenes!$B$2)) -> 473.2979614 | B11: =IF($B$7="MΩ", 1000000, IF($B$7="10kΩ", 10000, 100000)) -> 1000000 | C11: 100000 | D11: =IF(AND($C$7="NON",NOT($F$7),$D$7="HIGH"),IF(E7="RA, RB",behind_the_scenes!G28,behind_the_scenes!$I$22),IF($D$7="LOW",IF($C$7="INV", behind_the_scenes!$I$5, behind_the_scenes!$E$2),IF($C$7="INV",behind_the_scenes!$I$5,behind_the_scenes!$G$28))) -> 2998770.114 | E11: =IF($B$7="MΩ", 1000000, IF($B$7="10kΩ", 10000, 100000)) -> 1000000 | F11: =IF(AND($C$7="NON",NOT($F$7)),behind_the_scenes!$D$22,behind_the_scenes!$C$28) -> 10000 | G11: =IF(AND($C$7="NON",NOT($F$7)),behind_the_scenes!$H$22,behind_the_scenes!$D$28) -> 847.4576271 | H11: =IF(AND($C$7="NON",NOT($F$7)),behind_the_scenes!$J$22,behind_the_scenes!$H$28) -> 1254.547961
F12: 10000 | G12: 1000
A14: INPUT SUBSTITUTION | D14: SCHEMATIC | H14: TRANSFER CURVE
A32: References
A33: Inverting Comparator Example Solution
A34: Non-Inverting Comparator Example Solution

Sheet behind_the_scenes (hidden)
A1: Vth | B1: R1 (Ώ) | C1: R2 (Ώ) | D1: R3 (Ώ) | E1: R4 (Ώ) | F1: R5 (Ώ) | G1: X^2 (Vpu or Vcc) | H1: X | I1: 1 | J1: Root | K1: Non-inverting solution | M1: OD and PP NON-INV | N1: Ra | O1: Rb | P1: R1 | Q1: RB/RA | R1: Req | T1: R4 | U1: R5 | W1: Vh,new | X1: Vl,new | Y1: Total Hyst
A2: =(behind_the_scenes!$A$28-0.5*Tool!$F$3/1000)*behind_the_scenes!$C$2/(behind_the_scenes!$C$2+behind_the_scenes!$B$2) -> 1.250384458 | B2: =$J$2 -> 1254.547961 | C2: =Tool!$B$11 -> 1000000 | D2: =IF(Tool!$A$7="OD",Tool!$C$11,0) -> 100000 | E2: =$F$2*(Tool!$B$3-behind_the_scenes!$A$2)/behind_the_scenes!$A$2 -> 2998770.114 | F2: =IF(Tool!$C$7="NON",Tool!$E$11, 0) -> 1000000 | G2: =IF(Tool!$A$7="OD",Tool!$C$3,Tool!$A$3) -> 3.3 | H2: =$G$2*Tool!$B$11+(behind_the_scenes!$B$28+0.5*Tool!$F$3/1000)*($D$2+Tool!$B$11)-(behind_the_scenes!$A$28-0.5*Tool!$F$3/1000)*Tool!$B$11 -> 3420898.438 | I2: =((behind_the_scenes!$B$28+0.5*Tool!$F$3/1000)-(behind_the_scenes!$A$28-0.5*Tool!$F$3/1000))*(Tool!$B$11^2+$D$2*Tool!$B$11) -> -4296875000 | J2: =(-$H$2+SQRT($H$2*$H$2-4*$G$2*$I$2))/(2*$G$2) -> 1254.547961 | M2: With R1, Set RA and RB | N2: =Tool!$F$12 -> 10000 | O2: =Tool!$G$12 -> 1000 | P2: =$J$2-behind_the_scenes!$N$2*behind_the_scenes!$O$2/(behind_the_scenes!$N$2+behind_the_scenes!$O$2) -> 345.4570523 | Q2: =behind_the_scenes!$O$2/behind_the_scenes!$N$2 -> 0.1 | R2: =$J$2 -> 1254.547961 | S2: With R1 | T2: =behind_the_scenes!$U$2*Tool!$B$3*(Tool!$B$11+$J$2)*(behind_the_scenes!$N$2+behind_the_scenes!$O$2)/(Tool!$B$11*behind_the_scenes!$O$2*Tool!$D$3)-behind_the_scenes!$U$2 -> 2436443.066 | U2: =IF(Tool!$B$7="MΩ", 1000000, IF(Tool!$B$7="10kΩ", 10000, 100000)) -> 1000000 | V2: With R1 | W2: =Tool!$D$3*behind_the_scenes!$Q$3/(behind_the_scenes!$Q$3+1) -> 1.251953125 | X2: =Tool!$E$3*behind_the_scenes!$Q$3/(behind_the_scenes!$Q$3+1) -> 1.248046875 | Y2: =behind_the_scenes!$W$2-behind_the_scenes!$X$2 -> 0.00390625
M3: Without R1, Set Rb/Ra | N3: =behind_the_scenes!$R$3*(behind_the_scenes!$Q$3+1)/behind_the_scenes!$Q$3 -> 16058.21391 | O3: =behind_the_scenes!$N$3*behind_the_scenes!$Q$3 -> 1360.865585 | P3: 0 | Q3: =Tool!$A$3*behind_the_scenes!$I$28/(Tool!$G$3-Tool!$A$3*behind_the_scenes!$I$28) -> 0.08474576271 | R3: =$J$2 -> 1254.547961 | S3: Without R1 | T3: =behind_the_scenes!$U$3*Tool!$B$3*(Tool!$B$11+$J$2)*(behind_the_scenes!$N$3+behind_the_scenes!$O$3)/(Tool!$B$11*behind_the_scenes!$O$3*Tool!$D$3)-behind_the_scenes!$U$3 -> 2998770.114 | U3: =IF(Tool!$B$7="MΩ", 1000000, IF(Tool!$B$7="10kΩ", 10000, 100000)) -> 1000000 | V3: Without R1, Set Rb/Ra | W3: =Tool!$D$3*behind_the_scenes!$O$2/(behind_the_scenes!$N$2+behind_the_scenes!$O$2) -> 1.456818182 | X3: =Tool!$E$3*behind_the_scenes!$O$2/(behind_the_scenes!$N$2+behind_the_scenes!$O$2) -> 1.452272727 | Y3: =behind_the_scenes!$W$3-behind_the_scenes!$X$3 -> 0.004545454545
B4: A | C4: B | D4: C | E4: D | F4: X^2 | G4: X | H4: 1 | I4: root | K4: Inverting Solution | M4: Set RB | N4: =$O$4/$Q$4 -> 11800 | O4: =Tool!$G$12 -> 1000 | P4: =$R$4-$O$4/($Q$4+1) -> 332.6729614 | Q4: =Tool!$A$3*behind_the_scenes!$I$28/(Tool!$G$3-Tool!$A$3*behind_the_scenes!$I$28) -> 0.08474576271 | R4: =$J$2 -> 1254.547961 | S4: Set RB | T4: =behind_the_scenes!$U$4*Tool!$B$3*(Tool!$B$11+$J$2)*(behind_the_scenes!$N$4+behind_the_scenes!$O$4)/(Tool!$B$11*behind_the_scenes!$O$4*Tool!$D$3)-behind_the_scenes!$U$4 -> 2998770.114 | U4: =IF(Tool!$B$7="MΩ", 1000000, IF(Tool!$B$7="10kΩ", 10000, 100000)) -> 1000000 | V4: Set RB | W4: =Tool!$D$3*behind_the_scenes!$O$4/(behind_the_scenes!$N$4+behind_the_scenes!$O$4) -> 1.251953125 | X4: =Tool!$E$3*behind_the_scenes!$O$4/(behind_the_scenes!$O$4+behind_the_scenes!$N$4) -> 1.248046875 | Y4: =behind_the_scenes!$W$4-behind_the_scenes!$X$4 -> 0.00390625
B5: =Tool!$B$3/(behind_the_scenes!$B$28+0.5*Tool!$F$3/1000)-1 -> 3.006259781 | C5: =Tool!$B$3-(behind_the_scenes!$A$28 - 0.5*Tool!$F$3/1000) -> 3.748046875 | D5: =(behind_the_scenes!$A$28-0.5*Tool!$F$3/1000)/Tool!$B$11 -> 1.251953125e-06 | E5: =$G$2-(behind_the_scenes!$A$28-0.5*Tool!$F$3/1000) -> 2.048046875 | F5: =behind_the_scenes!$C$5/behind_the_scenes!$B$5-behind_the_scenes!$D$5*Tool!$B$11 -> -0.005205622072 | G5: =(behind_the_scenes!$C$5/behind_the_scenes!$B$5)*(Tool!$B$11+$D$2)-behind_the_scenes!$D$5*$D$2*Tool!$B$11+behind_the_scenes!$E$5*Tool!$B$11 -> 3294273.816 | H5: =(behind_the_scenes!$C$5/behind_the_scenes!$B$5)*Tool!$B$11*$D$2 -> 1.246747503e+11 | I5: =(-behind_the_scenes!$G$5-SQRT(behind_the_scenes!$G$5*behind_the_scenes!$G$5-4*behind_the_scenes!$F$5*behind_the_scenes!$H$5))/(2*behind_the_scenes!$F$5) -> 632867843.6 | M5: Set RA | N5: =Tool!$F$12 -> 10000 | O5: =$N$5*$Q$5 -> 847.4576271 | P5: =$R$5-$N$5/(1+1/$Q$5) -> 473.2979614 | Q5: =Tool!$A$3*behind_the_scenes!$I$28/(Tool!$G$3-Tool!$A$3*behind_the_scenes!$I$28) -> 0.08474576271 | R5: =$J$2 -> 1254.547961 | S5: Set RA | T5: =behind_the_scenes!$U$5*Tool!$B$3*(Tool!$B$11+$J$2)*(behind_the_scenes!$N$5+behind_the_scenes!$O$5)/(Tool!$B$11*behind_the_scenes!$O$5*Tool!$D$3)-behind_the_scenes!$U$5 -> 2998770.114 | U5: =IF(Tool!$B$7="MΩ", 1000000, IF(Tool!$B$7="10kΩ", 10000, 100000)) -> 1000000 | V5: Set RA | W5: =Tool!$D$3*behind_the_scenes!$O$5/(behind_the_scenes!$N$5+behind_the_scenes!$O$5) -> 1.251953125 | X5: =Tool!$E$3*behind_the_scenes!$O$5/(behind_the_scenes!$O$5+behind_the_scenes!$N$5) -> 1.248046875 | Y5: =behind_the_scenes!$W$5-behind_the_scenes!$X$5 -> 0.00390625
M6: PP and OD INV | N6: Ra | O6: Rb | P6: RB/RA | Q6: RA + RB | W6: Vh,new | X6: Vl,new | Y6: Total Hyst
M7: Set RA and RA+RB | N7: =Tool!$F$12 -> 10000 | O7: =$Q$7-$N$7 -> -10000 | P7: =$O$7/$N$7 -> -1 | Q7: =Tool!$H$12 -> 0 | V7: Set RA and Req | W7: =Tool!$D$3*behind_the_scenes!$O$7/(behind_the_scenes!$N$7+behind_the_scenes!$O$7) ->  | X7: =Tool!$E$3*behind_the_scenes!$O$7/(behind_the_scenes!$N$7+behind_the_scenes!$O$7) ->  | Y7: =$W$7-$X$7 -> 
B8: Power Options | C8: Out Stage Options | D8: Comp mode options | E8: Image Combo | F8: Input Impedance Options | G8: Select Input INV | H8: Input IMG | I8: RB/RA Preset Alternative Text | M8: Set RB | N8: =$Q$8-$O$8 -> -1000 | O8: =Tool!$G$12 -> 1000 | P8: =$O$8/$N$8 -> -1 | Q8: =Tool!$H$12 -> 0 | V8: Set RB and Req | W8: =Tool!$D$3*behind_the_scenes!$O$8/(behind_the_scenes!$N$8+behind_the_scenes!$O$8) ->  | X8: =Tool!$E$3*behind_the_scenes!$O$8/(behind_the_scenes!$N$8+behind_the_scenes!$O$8) ->  | Y8: =$W$8-$X$8 -> 
B9: MΩ | C9: PP | D9: INV | E9: =Tool!$A$7&Tool!$C$7 -> ODNON | F9: LOW | G9: =IF(Tool!F7,"FIND ALL","") -> FIND ALL | H9: =Tool!$D$7 -> HIGH | I9: ="FIND ALL" -> FIND ALL | M9: Set RA and RB | N9: =Tool!$F$12 -> 10000 | O9: =Tool!$G$12 -> 1000 | P9: =$O$9/$N$9 -> 0.1 | Q9: =$O$9+$N$9 -> 11000 | V9: Set RA and RB | W9: =Tool!$D$3*behind_the_scenes!$O$9/(behind_the_scenes!$N$9+behind_the_scenes!$O$9) -> 1.456818182 | X9: =Tool!$E$3*behind_the_scenes!$O$9/(behind_the_scenes!$N$9+behind_the_scenes!$O$9) -> 1.452272727 | Y9: =$W$9-$X$9 -> 0.004545454545
B10: 100kΩ | C10: OD | D10: NON | F10: HIGH | G10: =IF(Tool!F7,"","RA, RB") ->  | M10: Set RB/RA | N10: =IF(Tool!$B$7="MΩ", 1000000, IF(Tool!$B$7="10kΩ", 10000, 100000))/(P10+1) -> 921875 | O10: =$N$10*$P$10 -> 78125 | P10: =Tool!$A$3*behind_the_scenes!$I$28/(Tool!$G$3-Tool!$A$3*behind_the_scenes!$I$28) -> 0.08474576271 | Q10: =$O$10+$N$10 -> 1000000 | V10: Set RB/RA | W10: =Tool!$D$3*behind_the_scenes!$O$10/(behind_the_scenes!$N$10+behind_the_scenes!$O$10) -> 1.251953125 | X10: =Tool!$E$3*behind_the_scenes!$O$10/(behind_the_scenes!$N$10+behind_the_scenes!$O$10) -> 1.248046875 | Y10: =$W$10-$X$10 -> 0.00390625 | Z10: RB/RA set such that Req = dynamic selection value. EX: 10k, 100k, 1M
B11: 10kΩ | G11: =IF(Tool!$C$7="INV",IF(Tool!F7,"","RA+RB, RA"),IF(NOT(Tool!F7),"","RA")) -> RA
G12: =IF(Tool!$C$7="INV",IF(Tool!$F$7,"","RA+RB, RB"),"RB") -> RB
A16: OD-NON EXTRA
A17: In this section, we calculate RA and RB directly by using the thevanin relationship in the cookbook equations for the non-inverting configuration
A18: Find R4 WRT: | D18: Vh | E18: Vl
A19: RA Calculated | B19: =$C$19*Tool!$B$3*(Tool!$B$11+$J$22)*($D$22+Tool!$G$12)/(Tool!$B$11*Tool!$G$12*Tool!$D$3)-$C$19 -> 4444387.218 | C19: =IF(Tool!$B$7="MΩ", 1000000, IF(Tool!$B$7="10kΩ", 10000, 100000)) -> 1000000 | D19: =Tool!$D$3*Tool!$G$12/(Tool!$G$12+$D$22)+Tool!F3/1000 -> 0.9311604824 | E19: =Tool!$E$3*Tool!$G$12/(Tool!$G$12+$D$22)-Tool!F3/1000 -> 0.9282551455
A20: RB Calculated | B20: =$C$20*Tool!$B$3*(Tool!$B$11+$J$22)*($H$22+Tool!$F$12)/(Tool!$B$11*Tool!$D$3*$H$22)-$C$20 -> -772727.2727 | C20: =IF(Tool!$B$7="MΩ", 1000000, IF(Tool!$B$7="10kΩ", 10000, 100000)) -> 1000000 | D20: =Tool!$D$3*$H$22/(Tool!$F$12+$H$22)+Tool!F3/1000 -> 22.3062322 | E20: =Tool!$E$3*$H$22/(Tool!$F$12+$H$22)-Tool!F3/1000 -> 22.23663398
A21: X^2 | B21: X | C21: 1 | D21: RA | E21: X^2 | F21: X | G21: 1 | H21: RB | I21: R4 | J21: Req
A22: =$G$2*Tool!$G$12*(Tool!$G$12+$C$2) -> 3303300000 | B22: =$C$2*Tool!$G$12*(Tool!$G$12+$C$2+$D$2)*(Tool!$E$3-Tool!$D$3)+Tool!$G$12^2*($D$2*Tool!$E$3+$C$2*$G$2) -> -5.01525e+13 | C22: =$C$2*Tool!$G$12^2*($C$2+$D$2)*(Tool!$E$3-Tool!$D$3) -> -5.5e+16 | D22: =(-$B$22+SQRT($B$22^2-4*$A$22*$C$22))/(2*$A$22) -> 16209.708 | E22: =$C$2*($C$2+$D$2+Tool!$F$12)*(Tool!$E$3-Tool!$D$3)+Tool!$F$12*($D$2*Tool!$E$3+($C$2+Tool!$F$12)*$G$2) -> -6195000000 | F22: =$C$2*Tool!$F$12*((behind_the_scenes!$C$2+behind_the_scenes!$D$2)*(Tool!$E$3-Tool!$D$3)+behind_the_scenes!$G$2*Tool!$F$12) -> -2.2e+14 | G22: 0 | H22: =(-F22)/(E22) -> -35512.51009 | I22: =IF(Tool!$E$7="RB",behind_the_scenes!$B$19,behind_the_scenes!$B$20) -> -772727.2727 | J22: =IF(Tool!$E$7="RB",Tool!$G$12*behind_the_scenes!$D$22/(behind_the_scenes!$D$22+Tool!$G$12),IF(Tool!$E$7="RA",Tool!$F$12*behind_the_scenes!$H$22/(behind_the_scenes!$H$22+Tool!$F$12),$J$2)) -> 13919.64568
C23: Rb/Ra | D23: =Tool!$G$12/behind_the_scenes!$D$22 -> 0.06169142592 | E23: =$C$2*($C$2+Tool!$F$12)*(Tool!$E$3-Tool!$D$3)+Tool!$F$12*(($C$2+Tool!$F$12)*$G$2) -> -1.717e+10 | G23: Rb/Ra | H23: =$H$22/Tool!$F$12 -> -3.551251009
C24: RB | D24: =Tool!$G$12 -> 1000 | E24: =Tool!$F$12*(($C$2+Tool!$F$12)*$G$2) -> 33330000000 | G24: RA | H24: =Tool!$F$12 -> 10000
A26: In this section we use the thevanin equations by building off of the previously used equations directly. This allows us to set a limit such that the thevanin voltage avoids going beyond a percentage of Vcc
A27: Vh and Vl respectively | C27: RA Used | D27: RB Used | E27: R1 Used NON only | F27: RB/RA | G27: R4 NEW | H27: Req or RA+RB | I27: Vinmax % limit WRT Vcc
A28: =IF(Tool!$D$7="LOW",Tool!$D$3,IF(AND(Tool!$C$7="NON",OR(Tool!$E$7="FIND ALL",Tool!$E$7="RB",Tool!$E$7="RA")),Tool!$D$3*$F$28/($F$28+1),Tool!$D$3*$D$28/($C$28+$D$28))) -> 1.251953125 | B28: =IF(Tool!$D$7="LOW",Tool!$E$3,IF(AND(Tool!$C$7="NON",OR(Tool!E7="FIND ALL",Tool!E7="RB",Tool!E7="RA")),Tool!$E$3*$F$28/($F$28+1),Tool!$E$3*$D$28/($C$28+$D$28))) -> 1.248046875 | C28: =IF(Tool!$C$7="INV",IF(Tool!$E$7="RA+RB, RA",$N$7,IF(Tool!$E$7="RA+RB, RB",$N$8,IF(Tool!$E$7="RA, RB",$N$9,$N$10))),IF(Tool!$E$7="RA, RB",$N$2,IF(Tool!$E$7="FIND ALL",$N$3,IF(Tool!$E$7="RB",$N$4,$N$5)))) -> 10000 | D28: =IF(Tool!$C$7="INV",IF(Tool!$E$7="RA+RB, RA",$O$7,IF(Tool!$E$7="RA+RB, RB",$O$8,IF(Tool!$E$7="RA, RB",$O$9,$O$10))),IF(Tool!$E$7="RA, RB",$O$2,IF(Tool!$E$7="FIND ALL",$O$3,IF(Tool!$E$7="RB",$O$4,$O$5)))) -> 847.4576271 | E28: =IF(Tool!$E$7="RA, RB",$P$2,IF(Tool!$E$7="FIND ALL",$P$3,IF(Tool!$E$7="RB",$P$4,$P$5))) -> 473.2979614 | F28: =IF(Tool!$C$7="INV",IF(Tool!$E$7="RA+RB, RA",$P$7,IF(Tool!$E$7="RA+RB, RB",$P$8,IF(Tool!$E$7="RA, RB",$P$9,$P$10))),IF(Tool!$E$7="RA, RB",$Q$2,IF(Tool!$E$7="FIND ALL",$Q$3,IF(Tool!$E$7="RB",$Q$4,$Q$5)))) -> 0.08474576271 | G28: =IF(Tool!$E$7=behind_the_scenes!$G$9,behind_the_scenes!$T$3,IF(Tool!$E$7=behind_the_scenes!$G$10,behind_the_scenes!$T$2,IF(Tool!$E$7=behind_the_scenes!$G$11,behind_the_scenes!$T$5,behind_the_scenes!$T$4))) -> 2998770.114 | H28: =IF(Tool!$C$7="INV",IF(Tool!$E$7="RA+RB, RA",$Q$7,IF(Tool!$E$7="RA+RB, RB",$Q$8,IF(Tool!$E$7="RA, RB",$Q$9,$Q$10))),IF(Tool!$E$7="RA, RB",$R$2,IF(Tool!$E$7="FIND ALL",$R$3,IF(Tool!$E$7="RB",$R$4,$R$5)))) -> 1254.547961 | I28: 0.5
B29: (mV) | C29: Have the vl and vh values reference the appropriate values above
A30: Vh-Vl[th]= | B30: =IF(AND(Tool!D7="HIGH",NOT(Tool!F7)),IF(Tool!E7="RA",(behind_the_scenes!$D$19-behind_the_scenes!$E$19)*1000,(behind_the_scenes!$D$20-behind_the_scenes!$E$20)*1000),($A$28-$B$28)*1000) -> 3.90625
A31: This portion of the calculations derive the output such that RA and RB are preset values (t = 0) to avoid circular references
A41: Factor Rb
A42: Factor Ra
F44: =$C$2^2*Tool!$F$12*Tool!$E$3-behind_the_scenes!$C$2^2*Tool!$F$12*Tool!$D$3+behind_the_scenes!$C$2*behind_the_scenes!$G$2*Tool!$F$12^2-behind_the_scenes!$C$2*behind_the_scenes!$D$2*Tool!$D$3*Tool!$F$12+behind_the_scenes!$C$2*behind_the_scenes!$D$2*Tool!$E$3*Tool!$F$12 -> -219999999999998 | G44: Vh | H44: Vl | I44: RA
F45: =-F44/E44 ->  | G45: D | H45: E | I45: G12
G46: RB | H46: R2 | I46: R3
G47: H12 | H47: C | I47: D
B64: ** Equation Above Is longer than Shown
B84: **Equation above is longer than shown in the image

Sheet Images (hidden)
A1: TYPE_CONFIG | B1: HYST_IM | C1: COMP_CONFIG | D1: SCHEMATIC_IM | E1: IN_CONFIG | F1: INPUT_IM
A2: INV | C2: PPNON | E2: LOW
A3: NON | C3: PPINV | E3: HIGH
C4: ODNON
C5: ODINV
